bitfinex/quotes_ETHUSD_20250605
["timestamp","ask_amount","ask_price","bid_price","bid_amount"]
[1749126353286,9.96759646,2623.7,2623.5,3.81159345]
[1749126353628,9.96759646,2623.7,2623.5,3.81155671]
[1749126354514,9.96759646,2623.7,2623.2,1.725]
[1749126354715,9.96759646,2623.7,2623.6,3.81155663]
[1749126354913,11.09546611,2623.7,2623.5,3.8116165]
[1749126355816,11.09546611,2623.7,2623.4,3.81175182]
[1749126356016,11.09546611,2623.7,2623.5,3.81163456]
[1749126356226,10.85546611,2623.7,2623.6,3.81155663]
[1749126356395,1.1907,2623.5,2621.6,8.224]
[1749126356731,3.32059646,2623.2,2623.0,3.81235188]
[1749126356926,6.407,2623.1,2623.0,3.81235188]
[1749126358196,3.32059646,2623.2,2623.1,3.81228317]
[1749126358398,10.08265611,2623.2,2622.6,16.0]
[1749126358596,10.08265611,2623.2,2623.0,3.81236347]
[1749126358824,10.08265611,2623.2,2623.1,3.81228317]
[1749126358998,0.24,2623.4,2623.2,3.81211745]
[1749126359194,0.24,2623.4,2622.6,16.0]
[1749126359195,6.406,2623.3,2623.1,3.81220284]
[1749126359398,6.406,2623.3,2623.1,3.81216469]
[1749126359610,6.406,2623.3,2623.1,3.81219065]
[1749126359807,3.32059646,2623.2,2623.0,3.81234589]
[1749126360011,0.99665965,2623.2,2622.4,16.0]
[1749126360228,4.31725611,2623.2,2623.1,3.81228317]
[1749126360540,0.99665965,2623.2,2623.1,3.81228317]
[1749126360746,3.56059646,2623.4,2623.3,3.81199252]
[1749126360747,0.24,2623.4,2623.3,3.81199252]
[1749126361044,6.647,2623.4,2623.3,3.81199252]
[1749126361441,6.647,2623.4,2623.1,16.0]
[1749126361442,9.96759646,2623.4,2623.1,3.8122061]
[1749126361641,9.96759646,2623.4,2623.3,19.81199252]
[1749126361979,10.96435611,2623.4,2622.6,3.81286821]
[1749126362178,3.32059646,2623.1,2623.0,16.0]
[1749126362354,3.56059646,2623.1,2623.0,19.81242851]
[1749126363685,3.56059646,2623.1,2622.2,0.3793303]
[1749126363884,1.2797,2623.2,2622.9,3.81249844]
[1749126363885,6.646,2623.0,2622.9,3.81249844]
[1749126364061,10.75916646,2623.0,2622.9,3.81249844]
[1749126364248,10.75916646,2623.0,2622.6,3.81300342]
[1749126364448,7.43857,2623.0,2622.6,3.81300342]
[1749126364644,0.24,2623.0,2622.9,3.81257386]
[1749126364843,6.646,2623.0,2622.9,3.81257386]
[1749126365997,0.24,2623.0,2622.9,3.81257386]
[1749126366183,0.24,2623.0,2622.9,19.81257386]
[1749126366369,6.646,2623.0,2622.9,19.81257386]
[1749126366574,0.24,2623.0,2622.9,19.81257386]
[1749126366811,6.646,2623.0,2622.9,19.81257386]
[1749126367008,0.24,2623.0,2622.9,19.81257386]
[1749126367218,6.646,2623.0,2622.9,19.81257386]
[1749126367526,0.24,2623.3,2623.2,19.81213784]
[1749126367811,0.24,2623.5,2623.4,19.81184722]
[1749126368185,0.24,2623.5,2623.4,19.84224722]
[1749126368388,0.26,2623.9,2623.8,19.8112661]
[1749126368581,6.666,2623.9,2623.8,19.8112661]
[1749126369014,6.426,2623.9,2623.8,19.8112661]
[1749126371814,0.02,2623.9,2623.8,21.5646661]
[1749126374594,0.02,2623.9,2623.8,31.9341051]
[1749126382033,0.02,2623.9,2623.8,30.2111051]
[1749126382331,0.02,2623.9,2623.8,37.5933341]
[1749126383778,0.02,2623.9,2623.8,22.2418721]
[1749126383915,0.02,2623.9,2623.8,5.5636661]
[1749126384436,0.02,2623.9,2623.8,21.5636661]
[1749126384634,0.02,2623.9,2623.8,5.5332661]
[1749126385498,0.02,2623.9,2623.8,21.5332661]
[1749126389844,8.11163593,2623.9,2623.8,3.8112661]
[1749126390050,2.01846359,2623.9,2623.8,3.8112661]
[1749126390255,1.2073,2623.9,2623.8,19.8112661]
[1749126392251,1.2073,2623.9,2623.8,12.8112661]
[1749126392556,1.2073,2623.9,2623.8,16.6225322]
[1749126393118,1.2735,2623.8,2623.4,3.81171922]
[1749126393326,10.73554962,2623.9,2623.4,3.81184722]
[1749126393327,1.2735,2623.5,2623.4,3.81184722]
[1749126393762,1.2735,2623.5,2623.3,3.81190834]
[1749126393973,1.2735,2623.5,2623.3,3.81192871]
[1749126394137,1.2735,2623.5,2622.9,3.81248793]
[1749126394339,1.2735,2623.5,2623.2,3.81213784]
[1749126394547,1.2735,2623.5,2623.3,3.81197015]
[1749126394751,6.90433593,2623.4,2623.2,3.81208675]
[1749126395078,1.1755,2623.3,2623.2,3.81208675]
[1749126395275,1.98348359,2623.3,2623.2,3.81208675]
[1749126395643,1.98348359,2623.3,2623.2,3.81213784]
[1749126395863,1.98348359,2623.3,2623.0,1.721]
[1749126396063,1.242,2623.0,2622.4,8.222]
[1749126396336,6.90433593,2622.9,2622.7,5.53385516]
[1749126396534,7.71896952,2622.9,2622.8,3.81271923]
[1749126397252,7.71896952,2622.9,2622.7,3.81278329]
[1749126397550,6.401,2622.8,2622.7,3.81278329]
[1749126398091,6.401,2622.8,2622.4,8.222]
[1749126398092,7.6315,2622.8,2622.4,8.222]
[1749126398271,6.90433593,2622.6,2622.3,3.81330672]
[1749126398475,1.2305,2622.5,2622.2,1.721]
[1749126398675,1.2305,2622.5,2622.4,19.81330079]
[1749126398842,7.6325,2622.5,2622.4,19.81330079]
[1749126399048,1.2305,2623.0,2622.9,3.81256703]
[1749126399350,7.6325,2623.0,2622.9,3.81256703]
[1749126399856,9.08618359,2623.0,2622.5,16.0]
[1749126400089,9.08618359,2623.0,2622.9,3.81257386]
[1749126400651,9.08618359,2623.0,2622.6,3.81291003]
[1749126400959,1.1943,2622.7,2622.5,3.8130162]
[1749126401155,6.402,2622.6,2622.4,5.53426404]
[1749126401366,7.85206359,2622.6,2622.5,3.81315538]
[1749126408100,7.85206359,2622.6,2622.5,19.81315538]
[1749126408391,6.402,2622.6,2622.5,19.81315538]
[1749126408589,6.642,2622.6,2621.4,13.81475547]
[1749126408790,6.90433593,2622.5,2622.4,3.81330079]
[1749126408989,7.14433593,2622.5,2622.4,3.81330079]
[1749126409192,0.24,2622.5,2622.4,3.81330079]
[1749126410578,6.642,2622.5,2622.4,3.81330079]
[1749126417592,0.24,2622.5,2622.4,3.81330079]
[1749126417810,6.642,2622.5,2622.4,3.81330079]
[1749126418285,0.24,2622.5,2622.4,3.81330079]
[1749126418488,0.24,2622.8,2622.7,3.8128646]
[1749126418692,9.96529901,2622.8,2622.7,3.8128646]
[1749126420273,0.24,2622.8,2622.7,3.8128646]
[1749126420473,0.24,2622.8,2622.7,21.5348646]
[1749126421311,0.24,2623.2,2623.1,3.81228317]
[1749126421514,0.02,2623.9,2622.7,24.85816361]
[1749126421515,0.24,2623.4,2623.3,3.81199252]
[1749126421684,0.24,2623.4,2623.3,5.53399252]
[1749126426108,0.24,2623.4,2623.3,21.53399252]
[1749126426634,0.24,2623.4,2623.3,19.81199252]
[1749126427216,6.639,2623.5,2623.4,19.81184722]
[1749126427531,0.24,2623.5,2623.4,19.81184722]
[1749126427717,6.639,2623.5,2623.4,19.81184722]
[1749126430736,0.24,2623.5,2623.4,19.81184722]
[1749126431141,0.02,2623.9,2623.7,3.81141136]
[1749126431459,0.02,2623.9,2623.8,19.8112661]
[1749126431608,6.418,2623.9,2623.8,19.8112661]
[1749126431803,0.02,2623.9,2623.8,19.8112661]
[1749126432106,6.418,2623.9,2623.8,19.8112661]
[1749126437264,0.02,2623.9,2623.8,19.8112661]
[1749126437677,1.2738,2625.5,2623.9,16.0]
[1749126437887,1.2738,2625.5,2624.8,19.80981408]
[1749126438172,1.2738,2625.5,2624.8,23.24080034]
[1749126438325,6.9070714,2625.4,2624.8,21.52781408]
[1749126438528,6.396,2625.1,2624.8,21.52781408]
[1749126438948,6.396,2625.1,2624.8,19.80981408]
[1749126439279,1.2738,2625.5,2624.8,24.49577408]
[1749126439485,1.171,2625.8,2624.8,23.31129608]
[1749126439649,6.396,2625.5,2624.8,22.91129608]
[1749126439964,6.396,2625.4,2624.8,22.91129608]
[1749126440164,1.171,2625.8,2624.8,22.91129608]
[1749126440368,6.395,2625.3,2624.8,22.91129608]
[1749126442138,6.395,2625.3,2624.8,19.80981408]
[1749126442856,6.394,2625.1,2624.8,19.80981408]
[1749126443058,0.24,2625.7,2624.8,32.93036108]
[1749126443263,6.394,2625.4,2624.8,33.3034088]
[1749126443572,6.394,2625.4,2624.8,35.0214088]
[1749126443870,6.394,2625.4,2624.8,33.3034088]
[1749126445470,6.394,2625.4,2624.8,23.8118028]
[1749126446179,6.394,2625.4,2624.8,20.1828618]
[1749126446490,6.394,2625.4,2624.8,25.6212208]
[1749126446852,6.392,2625.0,2624.8,20.1828618]
[1749126447040,1.05136535,2624.9,2624.8,3.80981408]
[1749126447247,1.05136535,2624.9,2624.8,19.80981408]
[1749126447543,0.37469577,2624.9,2624.8,19.80981408]
[1749126448785,6.76569577,2624.9,2624.8,19.80981408]
[1749126449557,0.37469577,2624.9,2624.8,19.80981408]
[1749126449763,6.76569577,2624.9,2624.8,19.80981408]
[1749126452491,1.273,2624.8,2623.9,3.81099065]
[1749126452710,8.1003714,2624.3,2624.2,3.81063324]
[1749126452865,14.4913714,2624.3,2624.2,3.81063324]
[1749126453506,14.4913714,2624.3,2624.2,19.81063324]
[1749126453654,7.5843,2624.3,2624.2,19.81063324]
[1749126456292,14.4913714,2624.3,2624.2,19.81063324]
[1749126456873,14.4913714,2624.3,2623.7,3.81134256]
[1749126456874,15.94050854,2624.3,2623.7,3.81134256]
[1749126457066,15.94050854,2624.3,2624.2,3.81068516]
[1749126457263,15.94050854,2624.3,2624.0,16.0]
[1749126457470,15.94050854,2624.3,2624.2,3.81068516]
[1749126458788,15.94050854,2624.3,2624.0,3.8109756]
[1749126458995,1.59405085,2624.2,2624.1,19.81081192]
[1749126461323,1.59405085,2624.2,2624.1,11.81081192]
[1749126461626,1.59405085,2624.2,2624.1,3.81081192]
[1749126461997,1.59405085,2624.2,2623.6,3.81148277]
[1749126462220,0.24,2624.1,2624.0,3.8109756]
[1749126463527,1.69740288,2624.1,2624.0,3.8109756]
[1749126464401,1.69740288,2624.1,2623.9,3.81105993]
[1749126464609,13.2970714,2624.0,2623.9,3.81112085]
[1749126465926,13.5370714,2624.0,2623.9,3.81112085]
[1749126467321,9.94966761,2624.0,2623.9,3.81112085]
[1749126468451,0.24,2624.0,2623.9,3.81112085]
[1749126468632,6.63,2624.0,2623.9,3.81112085]
[1749126470557,6.63,2624.0,2623.9,19.81112085]
[1749126472370,9.94966761,2624.0,2623.9,19.81112085]
[1749126473336,9.94966761,2624.0,2622.9,3.31966761]
[1749126473337,9.94966761,2624.0,2623.7,3.81133261]
[1749126473538,3.31966761,2623.7,2622.8,4.088099]
[1749126473740,3.31966761,2623.5,2623.4,3.81184722]
[1749126473939,3.55966761,2623.5,2623.4,19.81184722]
[1749126475875,0.24,2623.5,2623.4,19.81184722]
[1749126476979,3.31966761,2623.5,2623.3,3.8118953]
[1749126477179,5.47843437,2623.5,2623.3,3.81196921]
[1749126477383,5.47843437,2623.5,2622.8,10.0]
[1749126477586,3.31966761,2623.0,2622.9,3.81257386]
[1749126477749,9.70966761,2623.0,2622.9,19.81257386]
[1749126478651,6.39,2623.0,2622.9,19.81257386]
[1749126479587,10.97056761,2623.0,2622.9,19.81257386]
[1749126480485,7.6509,2623.0,2622.9,19.81257386]
[1749126480687,10.97056761,2623.0,2622.9,19.81257386]
[1749126481046,9.70966761,2623.0,2622.9,19.81257386]
[1749126481607,4.51576761,2623.2,2623.1,3.81228317]
[1749126481855,1.2526,2623.4,2623.3,3.81199252]
[1749126482002,7.6416,2623.4,2623.3,3.81199252]
[1749126483036,1.2526,2623.4,2623.3,3.81199252]
[1749126483238,10.96226761,2623.4,2623.3,3.81199252]
[1749126483439,7.6426,2623.4,2623.3,3.81199252]
[1749126483616,10.96226761,2623.4,2623.3,3.81199252]
[1749126484640,9.70966761,2623.4,2623.3,3.81199252]
[1749126485152,3.81071912,2624.2,2623.4,3.81184722]
[1749126485153,1.716,2624.1,2623.4,3.81184722]
[1749126485445,7.28444067,2624.0,2623.7,3.81133822]
[1749126485613,3.31966761,2623.7,2623.6,3.81151025]
[1749126485815,9.70966761,2623.7,2623.6,3.81151025]
[1749126486445,9.70866761,2623.7,2623.6,3.81151025]
[1749126487060,11.91533437,2623.7,2623.5,3.81162561]
[1749126487649,11.91533437,2623.7,2623.1,16.0]
[1749126487650,3.81155783,2623.6,2623.1,3.81217081]
[1749126487958,3.31966761,2623.2,2623.1,3.81228317]
[1749126488132,9.70866761,2623.2,2623.1,3.81228317]
[1749126488337,10.67953437,2623.2,2622.5,2.08688907]
[1749126488513,3.31966761,2622.7,2622.6,3.81295341]
[1749126488848,3.31966761,2622.7,2622.6,19.81295341]
[1749126488849,9.70866761,2622.7,2622.6,19.81295341]
[1749126489203,6.389,2622.7,2622.5,3.81312903]
[1749126489548,6.389,2622.7,2622.6,3.81295341]
[1749126490633,13.3004543,2622.7,2622.6,3.81295341]
[1749126493125,14.4914543,2622.7,2622.6,3.81295341]
[1749126493636,16.18059973,2622.7,2622.4,3.81319403]
[1749126493838,16.18059973,2622.7,2622.5,3.81309485]
[1749126494040,9.26914543,2622.7,2622.4,3.81321545]
[1749126494244,14.7314543,2622.7,2622.6,3.81300999]
[1749126494767,14.7314543,2622.7,2622.5,3.81307456]
[1749126494964,14.7314543,2622.7,2622.5,3.8131303]
[1749126495664,14.7314543,2622.7,2622.1,0.02]
[1749126496158,14.7314543,2622.7,2622.5,3.81313141]
[1749126496361,16.20459973,2622.7,2622.5,3.81313141]
[1749126496873,16.20459973,2622.7,2622.4,3.81323672]
[1749126497033,9.29314543,2622.7,2622.5,3.81314115]
[1749126497234,6.9114543,2622.6,2622.5,3.81314115]
[1749126497435,7.1514543,2622.6,2622.5,3.81314115]
[1749126498264,7.1514543,2622.6,2622.3,3.81340464]
[1749126498465,7.1514543,2622.6,2622.5,3.81315538]
[1749126500839,7.1514543,2622.6,2622.4,3.81325791]
[1749126501240,0.24,2622.5,2622.4,3.81325791]
[1749126502970,6.9114543,2622.6,2622.5,3.81315538]
[1749126503170,6.9114543,2622.6,2622.4,3.81324295]
[1749126503388,6.9114543,2622.6,2622.1,16.02]
[1749126503885,6.9114543,2622.6,2622.4,3.81317887]
[1749126504045,6.9114543,2622.6,2622.5,3.81315538]
[1749126504642,13.2994543,2622.6,2622.5,3.81315538]
[1749126504874,6.9114543,2622.6,2622.5,3.81315538]
[1749126505119,0.97086676,2623.2,2622.1,19.83372976]
[1749126505264,6.9114543,2622.9,2622.1,19.83372976]
[1749126505594,6.388,2622.8,2622.7,3.81274812]
[1749126507194,6.388,2622.8,2622.6,3.8130099]
[1749126507409,6.388,2622.8,2622.6,3.81290125]
[1749126507579,6.388,2622.8,2622.7,3.8128646]
[1749126507890,6.9114543,2622.9,2622.6,3.81296808]
[1749126508061,6.388,2622.8,2622.6,3.81290095]
[1749126509151,3.32309784,2622.7,2622.6,3.81290095]
[1749126509498,4.56169784,2622.7,2622.5,3.81306885]
[1749126509848,4.56169784,2622.7,2622.4,3.81319795]
[1749126510095,3.32309784,2622.5,2622.4,3.81319795]
[1749126510384,9.71009784,2622.5,2622.4,16.0]
[1749126510679,9.71009784,2622.5,2622.4,3.81330079]
[1749126512747,9.95009784,2622.5,2622.4,3.81330079]
[1749126515182,3.56309784,2622.5,2622.4,3.81330079]
[1749126515386,0.24,2622.5,2622.4,3.81330079]
[1749126515805,6.626,2622.5,2622.4,3.81330079]
[1749126516106,6.386,2622.5,2622.4,3.81330079]
[1749126516474,9.70909784,2622.5,2622.1,18.46047034]
[1749126516800,9.70909784,2622.5,2622.4,3.81330079]
[1749126517983,12.12100762,2622.5,2621.8,1.711]
[1749126518182,3.32309784,2622.2,2622.1,3.81373708]
[1749126518386,9.70909784,2622.2,2622.1,3.81373708]
[1749126518680,6.386,2622.2,2622.1,19.81373708]
[1749126520399,3.56309784,2622.5,2622.4,3.81330079]
[1749126520576,9.94909784,2622.5,2622.4,3.81330079]
[1749126521220,10.94400762,2622.5,2622.4,3.81330079]
[1749126521377,12.16990762,2622.5,2622.4,3.81330079]
[1749126522210,12.16990762,2622.5,2622.1,16.0]
[1749126522428,3.32309784,2622.2,2622.1,16.0]
[1749126522632,10.90619784,2622.2,2621.6,3.8143331]
[1749126522789,3.32309784,2621.8,2621.7,16.0]
[1749126523125,9.70809784,2621.8,2621.7,3.81431895]
[1749126523430,9.70809784,2621.8,2621.7,19.81431895]
[1749126524377,9.70809784,2621.8,2621.7,12.51591145]
[1749126524573,6.385,2621.8,2621.7,3.81431895]
[1749126527293,0.24,2622.1,2622.0,3.81388253]
[1749126527488,6.625,2622.1,2622.0,3.81388253]
[1749126528118,0.24,2622.1,2622.0,3.81388253]
[1749126528330,6.625,2622.1,2622.0,3.81388253]
[1749126529325,0.24,2622.1,2622.0,3.81388253]
[1749126529627,6.624,2622.1,2622.0,3.81388253]
[1749126530001,6.624,2622.1,2622.0,19.81388253]
[1749126531109,6.624,2622.1,2622.0,22.97088253]
[1749126531685,0.24,2622.1,2622.0,24.68188253]
[1749126532110,0.24,2622.1,2622.0,21.52488253]
[1749126533866,6.384,2622.2,2622.1,19.81373708]
[1749126535415,0.24,2622.5,2622.4,3.81330079]
[1749126535660,3.32309784,2622.6,2622.5,3.81315538]
[1749126535661,0.24,2622.6,2622.5,3.81315538]
[1749126535821,0.24,2622.6,2622.5,19.81315538]
[1749126537557,0.24,2622.6,2622.5,21.52415538]
[1749126539763,9.70509784,2622.8,2622.7,3.8128646]
[1749126541741,3.32309784,2622.8,2622.7,3.8128646]
[1749126541961,9.70409784,2622.8,2622.7,3.8128646]
[1749126543053,3.32309784,2623.0,2622.9,3.81257386]
[1749126543279,9.70409784,2623.0,2622.9,3.81257386]
[1749126543796,10.79336762,2623.0,2622.9,3.81257386]
[1749126545604,11.03336762,2623.0,2622.9,3.81257386]
[1749126547670,11.03236762,2623.0,2622.9,3.81257386]
[1749126549791,0.24,2623.0,2622.9,19.81257386]
[1749126550276,6.379,2623.0,2622.9,19.81255559]
[1749126555279,3.32309784,2623.4,2623.3,3.81199252]
[1749126555478,9.94109784,2623.4,2623.3,3.81199252]
[1749126556195,1.2054,2623.3,2623.1,3.81220279]
[1749126556511,3.32309784,2623.2,2623.1,3.81220279]
[1749126559325,3.32309784,2623.2,2623.1,3.81228317]
[1749126559497,3.32309784,2623.2,2622.7,5.51885117]
[1749126559697,7.06984978,2623.1,2623.0,3.81242851]
[1749126560008,11.62614762,2623.1,2623.0,3.81242851]
[1749126561893,11.62514762,2623.1,2623.0,3.81242851]
[1749126562194,11.17229784,2623.1,2623.0,3.81242851]
[1749126562721,11.17229784,2623.1,2622.7,19.43783436]
[1749126562926,11.17229784,2623.1,2623.0,3.81242851]
[1749126564827,9.93809784,2623.1,2623.0,3.81242851]
[1749126567543,9.93809784,2623.1,2622.7,19.43777259]
[1749126567716,9.93809784,2623.1,2623.0,3.81242851]
[1749126567911,0.24,2623.1,2623.0,3.81242851]
[1749126568224,9.93809784,2623.1,2623.0,3.81242851]
[1749126570822,9.93809784,2623.1,2622.9,3.81253525]
[1749126570988,9.93809784,2623.1,2623.0,3.81242851]
[1749126572018,6.614,2623.1,2623.0,3.81242851]
[1749126572889,0.24,2623.1,2623.0,3.81242851]
[1749126573089,6.613,2623.1,2623.0,3.81242851]
[1749126577331,3.32309784,2623.6,2623.5,3.81170192]
[1749126577529,10.06024277,2623.6,2623.5,3.81170192]
[1749126577734,1.9579123,2623.8,2623.7,3.81141136]
[1749126577911,9.69509784,2623.8,2623.7,3.81141136]
[1749126581545,3.32309784,2623.8,2623.3,3.64033355]
[1749126581751,9.69409784,2623.8,2623.7,3.81134819]
[1749126582811,3.32309784,2623.8,2623.7,3.81134819]
[1749126583206,9.69409784,2623.8,2623.7,3.81134819]
[1749126583746,3.32309784,2623.8,2623.7,3.81134819]
[1749126583939,9.69409784,2623.8,2623.7,3.81134819]
[1749126586241,3.32309784,2623.8,2623.7,3.81134819]
[1749126586446,9.69309784,2623.8,2623.7,3.81134819]
[1749126586946,0.02,2623.9,2623.8,3.8112661]
[1749126587151,9.71209784,2623.9,2623.8,3.8112661]
[1749126590442,9.71209784,2623.9,2623.7,3.81128346]
[1749126590640,9.71209784,2623.9,2623.8,3.8112661]
[1749126591046,3.34309784,2623.9,2623.8,3.8112661]
[1749126591220,9.71109784,2623.9,2623.8,3.8112661]
[1749126594158,6.387,2623.9,2623.8,3.8112661]
[1749126595184,0.02,2623.9,2623.8,3.8112661]
[1749126595386,6.387,2623.9,2623.8,3.8112661]
[1749126595663,0.02,2623.9,2623.8,28.4485861]
[1749126595884,0.02,2623.9,2623.8,30.1505861]
[1749126600273,3.34309784,2623.9,2623.8,24.63732]
[1749126600473,1.257,2623.7,2621.9,3.32309784]
[1749126600632,3.32309784,2623.1,2622.1,22.391255]
[1749126600834,9.68809784,2623.1,2622.6,13.0625]
[1749126601032,6.365,2623.1,2623.0,3.81242851]
[1749126601369,6.365,2623.1,2622.9,3.81254396]
[1749126601530,3.32309784,2623.0,2622.8,3.81264855]
[1749126601730,3.32309784,2623.0,2622.6,1.702]
[1749126601964,7.44828978,2623.1,2622.8,3.8127124]
[1749126602198,7.44828978,2623.1,2622.7,16.0]
[1749126602577,7.44828978,2623.1,2622.8,3.81269644]
[1749126602905,7.44828978,2623.1,2622.9,3.81257321]
[1749126603060,3.32309784,2623.0,2622.9,3.81257321]
[1749126603261,9.68809784,2623.0,2622.8,3.81265334]
[1749126603505,14.20281444,2623.0,2622.7,3.81278415]
[1749126603676,3.32309784,2622.8,2622.7,3.81278415]
[1749126604065,4.49669784,2622.8,2622.7,3.81278415]
[1749126604502,7.55661876,2623.0,2622.9,3.81257386]
[1749126604802,10.8797166,2623.0,2622.6,16.0]
[1749126604972,3.32309784,2623.8,2623.1,27.979983]
[1749126605175,1.261,2623.8,2623.3,13.81193857]
[1749126605376,6.385,2623.9,2623.7,16.0]
[1749126605587,0.6385,2623.8,2623.0,10.575228]
[1749126605812,6.385,2623.9,2623.3,1.702]
[1749126606101,6.385,2623.9,2623.6,3.81151651]
[1749126606305,6.385,2623.9,2623.7,3.81138108]
[1749126606504,3.32309784,2623.8,2623.7,3.81138108]
[1749126606665,9.68809784,2623.8,2623.7,3.81138108]
[1749126606868,0.02,2623.9,2623.8,3.8112661]
[1749126607292,0.02,2623.9,2623.8,14.2589551]
[1749126607480,0.02,2623.9,2623.8,12.3909581]
[1749126607922,0.02,2623.9,2623.8,3.8112661]
[1749126608140,0.02,2623.9,2623.8,19.8112661]
[1749126608404,3.34309784,2623.9,2623.8,19.8112661]
[1749126608909,3.34309784,2623.9,2623.7,3.81139236]
[1749126609083,3.34309784,2623.9,2623.8,3.8112661]
[1749126610340,9.70809784,2623.9,2623.8,3.8112661]
[1749126610542,0.02,2623.9,2623.8,3.8112661]
[1749126612029,0.02,2623.9,2623.8,27.1591661]
[1749126613106,6.384,2623.9,2623.8,27.1591661]
[1749126613643,0.02,2623.9,2623.8,27.1591661]
[1749126613821,6.384,2623.9,2623.8,27.1591661]
[1749126614030,1.1733,2623.8,2623.4,1.702]
[1749126614352,1.1733,2623.8,2623.1,1.698]
[1749126614353,6.90461146,2623.6,2623.1,1.698]
[1749126614506,6.364,2623.5,2623.1,1.698]
[1749126614707,6.364,2623.5,2517.6,26.89669421]
[1749126614708,6.90461146,2623.3,2622.6,11.698]
[1749126615014,8.09691146,2623.3,2623.1,3.81219215]
[1749126615241,9.54300261,2623.3,2623.0,3.8123663]
[1749126615543,6.90461146,2623.1,2623.0,3.81242851]
[1749126615705,6.364,2623.1,2623.0,3.81242851]
[1749126616106,13.26861146,2623.1,2623.0,3.81242851]
[1749126616301,13.26861146,2623.1,2622.1,1.698]
[1749126616525,8.23147261,2623.0,2622.9,3.81256197]
[1749126616747,1.1761,2622.9,2622.7,3.81279957]
[1749126617058,1.1761,2622.9,2622.2,3.81359164]
[1749126617291,6.90461146,2622.6,2622.5,3.81306266]
[1749126617587,13.26761146,2622.6,2622.5,3.81306266]
[1749126617744,6.363,2622.6,2622.5,3.81306266]
[1749126618696,1.1761,2622.9,2622.8,3.81271923]
[1749126618983,8.48085726,2622.9,2622.8,3.81271923]
[1749126619185,7.5401,2622.9,2622.8,3.81271923]
[1749126619689,6.90461146,2623.3,2622.9,3.81250587]
[1749126619985,1.699,2623.5,2621.9,3.81389172]
[1749126619986,6.90461146,2623.0,2621.9,3.81389172]
[1749126620188,6.90461146,2622.8,2622.7,3.81275508]
[1749126620485,7.18205115,2622.8,2622.7,3.81275508]
[1749126620648,14.08666261,2622.8,2622.7,3.81275508]
[1749126621098,14.08666261,2622.8,2622.6,3.81299605]
[1749126621262,14.08666261,2622.8,2622.7,3.8128646]
[1749126621465,14.08666261,2622.8,2622.6,3.81292343]
[1749126621673,1.53625626,2622.7,2622.6,3.81292343]
[1749126621880,1.53625626,2622.7,2621.8,16.0]
[1749126622219,6.90461146,2622.5,2621.6,1.699]
[1749126622434,6.90461146,2621.9,2621.1,0.02]
[1749126622713,6.90461146,2621.9,2621.8,3.81417346]
[1749126622916,13.26861146,2621.9,2621.8,3.81417346]
[1749126623079,13.95907261,2621.9,2621.7,3.81426239]
[1749126623274,1.1863,2621.8,2621.6,3.81441477]
[1749126623474,1.1863,2621.8,2621.1,0.02]
[1749126623475,6.90461146,2621.7,2621.1,0.02]
[1749126623694,6.90461146,2621.7,2621.1,3.8351585]
[1749126623892,6.90461146,2621.3,2621.2,3.81491643]
[1749126624078,6.90461146,2621.3,2621.1,0.02]
[1749126624079,13.26961146,2621.3,2621.1,0.02]
[1749126624310,13.26961146,2621.3,2621.1,3.83518511]
[1749126624512,13.26961146,2621.3,2621.1,0.02]
[1749126624722,1.2001,2621.2,2621.1,3.83519209]
[1749126624927,2.64707115,2621.2,2621.1,0.02]
[1749126625299,6.46211769,2621.2,2621.1,0.02]
[1749126625641,6.46211769,2621.2,2620.1,0.02]
[1749126625642,1.22,2621.0,2620.1,0.02]
[1749126625937,3.81522193,2621.1,2620.1,0.02]
[1749126625938,1.22,2620.3,2620.2,3.81650255]
[1749126626143,7.585,2620.3,2620.1,0.02]
[1749126626453,1.22,2620.3,2620.2,3.81650255]
[1749126626747,6.90461146,2620.2,2620.1,3.83664821]
[1749126627107,14.48961146,2620.3,2620.1,3.83664821]
[1749126627309,14.48961146,2620.3,2620.1,0.02]
[1749126627536,14.48961146,2620.3,2620.1,3.83659852]
[1749126627847,19.7550207,2620.3,2620.1,0.02]
[1749126628028,3.81650255,2620.2,2620.1,0.02]
[1749126628228,9.57357261,2620.3,2620.1,0.02]
[1749126628743,8.065,2620.2,2620.1,0.02]
[1749126629134,9.57357261,2620.3,2620.1,0.02]
[1749126629340,1.2687,2619.9,2619.1,0.02]
[1749126629724,6.90461146,2619.7,2619.6,3.81729631]
[1749126629923,6.368,2619.7,2619.6,3.81726969]
[1749126630124,1.2687,2619.9,2619.7,3.81722275]
[1749126630348,7.18533115,2619.8,2619.2,16.0]
[1749126630651,7.18533115,2619.8,2619.1,3.83797932]
[1749126630652,6.90461146,2619.6,2619.4,3.81760169]
[1749126631334,6.90461146,2619.6,2619.1,0.02]
[1749126631537,6.90461146,2619.6,2619.5,3.81752242]
[1749126631726,0.81733115,2619.8,2619.6,3.81725963]
[1749126631923,0.81733115,2619.8,2619.7,3.81723098]
[1749126632138,1.2687,2619.9,2619.7,3.81723098]
[1749126632373,1.2687,2619.9,2619.8,3.81708527]
[1749126632687,7.6367,2619.9,2619.8,3.81708527]
[1749126632843,7.6367,2619.9,2619.7,3.81715286]
[1749126633185,7.6367,2619.9,2619.5,3.81747157]
[1749126633186,1.2687,2619.9,2619.6,3.81729841]
[1749126633362,6.37,2619.8,2619.6,3.81737669]
[1749126633562,6.37,2619.8,2619.7,3.81723098]
[1749126633857,6.37,2619.8,2619.1,0.02]
[1749126633858,3.81725476,2619.7,2619.2,3.81788998]
[1749126634056,10.72225493,2619.5,2619.1,0.02]
[1749126634283,6.90461146,2619.5,2619.1,0.02]
[1749126634447,8.17631146,2619.2,2617.8,10.0]
[1749126634650,6.90461146,2618.9,2618.2,3.8193933]
[1749126634851,8.23207261,2618.9,2618.4,16.0]
[1749126635075,1.32746115,2618.9,2618.8,3.81854284]
[1749126635281,6.37,2618.9,2618.8,3.81854284]
[1749126636751,1.2717,2619.2,2619.1,3.81810545]
[1749126636957,16.0,2619.7,2619.5,3.81750161]
[1749126637190,1.2569,2619.8,2618.7,3.81867846]
[1749126637490,6.371,2619.7,2619.5,3.81739952]
[1749126637861,6.371,2619.7,2619.6,3.81737669]
[1749126638061,1.55469,2619.8,2619.7,3.81723098]
[1749126638390,1.2569,2619.8,2619.7,3.81723098]